[Event "Titled Tuesday Blitz November 14 Late 2023"]
[White "MFatigue"]
[Black "Principe, Gerson"]
[BlackFideId "3804550"]
[WhiteElo "2476"]
[BlackElo "2621"]
[Result "1-0"]
[Round "3"]
[TimeControl "180+1"]
[Date "2023.11.14"]
[WhiteClock "0:00:06"]
[BlackClock "0:00:00"]
[Board "72"]

1. e4 {[%clk 0:03:00]}  c5 {[%clk 0:02:54]} 2. a3 {[%clk 0:03:00]}  d5 {[%clk 0:02:50]} 3. exd5 {[%clk 0:03:00]}  Qxd5 {[%clk 0:02:51]} 4. Nc3 {[%clk 0:03:01]}  Qd8 {[%clk 0:02:51]} 5. Nf3 {[%clk 0:03:01]}  Nf6 {[%clk 0:02:50]} 6. d4 {[%clk 0:03:02]}  cxd4 {[%clk 0:02:50]} 7. Qxd4 {[%clk 0:03:02]}  Qxd4 {[%clk 0:02:47]} 8. Nxd4 {[%clk 0:03:03]}  a6 {[%clk 0:02:48]} 9. Na4 {[%clk 0:03:02]}  Nbd7 {[%clk 0:02:46]} 10. c4 {[%clk 0:03:03]}  e6 {[%clk 0:02:46]} 11. Be3 {[%clk 0:03:03]}  Be7 {[%clk 0:02:33]} 12. Be2 {[%clk 0:03:01]}  O-O {[%clk 0:02:31]} 13. O-O {[%clk 0:03:02]}  Nc5 {[%clk 0:02:04]} 14. Nb6 {[%clk 0:02:59]}  Rb8 {[%clk 0:01:38]} 15. Bf4 {[%clk 0:02:46]}  Bd7 {[%clk 0:01:38]} 16. Bxb8 {[%clk 0:02:44]}  Rxb8 {[%clk 0:01:39]} 17. b4 {[%clk 0:02:42]}  Nce4 {[%clk 0:01:37]} 18. Rfd1 {[%clk 0:02:23]}  Be8 {[%clk 0:01:35]} 19. Bf3 {[%clk 0:02:20]}  Nd6 {[%clk 0:01:33]} 20. c5 {[%clk 0:02:10]}  Nb5 {[%clk 0:01:26]} 21. Nxb5 {[%clk 0:01:58]}  axb5 {[%clk 0:01:25]} 22. Rd3 {[%clk 0:01:56]}  Kf8 {[%clk 0:01:22]} 23. Rad1 {[%clk 0:01:56]}  h6 {[%clk 0:01:07]} 24. h4 {[%clk 0:01:47]}  g5 {[%clk 0:01:04]} 25. hxg5 {[%clk 0:01:48]}  hxg5 {[%clk 0:01:05]} 26. g3 {[%clk 0:01:49]}  Kg7 {[%clk 0:01:01]} 27. Kf1 {[%clk 0:01:46]}  Kf8 {[%clk 0:00:58]} 28. Ke2 {[%clk 0:01:46]}  Kg7 {[%clk 0:00:58]} 29. R1d2 {[%clk 0:01:28]}  Kf8 {[%clk 0:00:57]} 30. Kd1 {[%clk 0:01:29]}  Kg7 {[%clk 0:00:57]} 31. Kc2 {[%clk 0:01:29]}  Kf8 {[%clk 0:00:57]} 32. Kb3 {[%clk 0:01:29]}  Kg7 {[%clk 0:00:56]} 33. Bg2 {[%clk 0:01:22]}  Kf8 {[%clk 0:00:55]} 34. Bf3 {[%clk 0:01:12]}  Kg7 {[%clk 0:00:55]} 35. a4 {[%clk 0:01:13]}  bxa4+ {[%clk 0:00:55]} 36. Nxa4 {[%clk 0:01:14]}  Bb5 {[%clk 0:00:44]} 37. Re3 {[%clk 0:01:09]}  Be8 {[%clk 0:00:28]} 38. Nc3 {[%clk 0:01:08]}  g4 {[%clk 0:00:17]} 39. Bg2 {[%clk 0:01:08]}  Nd7 {[%clk 0:00:16]} 40. Re4 {[%clk 0:01:02]}  Nf6 {[%clk 0:00:14]} 41. Rc4 {[%clk 0:00:58]}  b5 {[%clk 0:00:12]} 42. Rcd4 {[%clk 0:00:49]}  Rc8 {[%clk 0:00:12]} 43. R4d3 {[%clk 0:00:48]}  Kg6 {[%clk 0:00:12]} 44. f3 {[%clk 0:00:45]}  gxf3 {[%clk 0:00:12]} 45. Bxf3 {[%clk 0:00:46]}  Kg7 {[%clk 0:00:12]} 46. Ne4 {[%clk 0:00:37]}  Nd5 {[%clk 0:00:12]} 47. Nc3 {[%clk 0:00:36]}  Nf6 {[%clk 0:00:09]} 48. Ra2 {[%clk 0:00:32]}  Kf8 {[%clk 0:00:07]} 49. Ra5 {[%clk 0:00:32]}  Rb8 {[%clk 0:00:06]} 50. Rd2 {[%clk 0:00:27]}  Ng8 {[%clk 0:00:05]} 51. Ra8 {[%clk 0:00:27]}  Rxa8 {[%clk 0:00:06]} 52. Bxa8 {[%clk 0:00:28]}  f5 {[%clk 0:00:06]} 53. Ra2 {[%clk 0:00:24]}  Nf6 {[%clk 0:00:06]} 54. Ra5 {[%clk 0:00:24]}  e5 {[%clk 0:00:06]} 55. Nxb5 {[%clk 0:00:24]}  e4 {[%clk 0:00:06]} 56. Nc3 {[%clk 0:00:24]}  e3 {[%clk 0:00:05]} 57. c6 {[%clk 0:00:23]}  Bd6 {[%clk 0:00:05]} 58. Rxf5 {[%clk 0:00:21]}  Ke7 {[%clk 0:00:05]} 59. Rf3 {[%clk 0:00:16]}  Bf7+ {[%clk 0:00:06]} 60. Ka4 {[%clk 0:00:16]}  e2 {[%clk 0:00:04]} 61. Nxe2 {[%clk 0:00:16]}  Bh5 {[%clk 0:00:04]} 62. Re3+ {[%clk 0:00:16]}  Kd8 {[%clk 0:00:05]} 63. Nf4 {[%clk 0:00:17]}  Bf7 {[%clk 0:00:04]} 64. b5 {[%clk 0:00:16]}  Kc7 {[%clk 0:00:04]} 65. Ka5 {[%clk 0:00:15]}  Bc5 {[%clk 0:00:03]} 66. Rd3 {[%clk 0:00:07]}  Bb6+ {[%clk 0:00:03]} 67. Ka6 {[%clk 0:00:08]}  Bc4 {[%clk 0:00:01]} 68. Rd1 {[%clk 0:00:06]}  Bf7 {[%clk 0:00:00]} 69. g4 {[%clk 0:00:06]} 1-0


[Site "https://www.chess.com"]

[Event "Titled Tuesday Blitz November 14 Late 2023"]
[White "Sakun, Volodymyr"]
[Black "Kovalevsky, Stanislav"]
[WhiteFideId "14114062"]
[BlackFideId "13508598"]
[WhiteElo "2619"]
[BlackElo "2461"]
[Result "1-0"]
[Round "3"]
[TimeControl "180+1"]
[Date "2023.11.14"]
[WhiteClock "0:00:38"]
[BlackClock "0:00:07"]
[Board "74"]

1. e4 {[%clk 0:03:00]}  c6 {[%clk 0:03:00]} 2. d4 {[%clk 0:03:00]}  d5 {[%clk 0:03:00]} 3. e5 {[%clk 0:03:01]}  c5 {[%clk 0:03:01]} 4. Nf3 {[%clk 0:03:01]}  Bg4 {[%clk 0:02:59]} 5. dxc5 {[%clk 0:02:56]}  Nc6 {[%clk 0:02:55]} 6. a3 {[%clk 0:02:49]}  Bxf3 {[%clk 0:02:48]} 7. Qxf3 {[%clk 0:02:48]}  Nxe5 {[%clk 0:02:48]} 8. Bb5+ {[%clk 0:02:46]}  Nc6 {[%clk 0:02:48]} 9. b4 {[%clk 0:02:40]}  Nf6 {[%clk 0:02:33]} 10. Bb2 {[%clk 0:02:38]}  e6 {[%clk 0:02:34]} 11. c4 {[%clk 0:02:34]}  a6 {[%clk 0:02:31]} 12. Ba4 {[%clk 0:02:08]}  Be7 {[%clk 0:02:21]} 13. O-O {[%clk 0:02:01]}  O-O {[%clk 0:02:18]} 14. Rd1 {[%clk 0:01:58]}  Qc7 {[%clk 0:02:05]} 15. cxd5 {[%clk 0:01:52]}  Nxd5 {[%clk 0:02:02]} 16. Nc3 {[%clk 0:01:52]}  Ne5 {[%clk 0:01:44]} 17. Qg3 {[%clk 0:01:44]}  Nxc3 {[%clk 0:00:50]} 18. Bxc3 {[%clk 0:01:44]}  Bf6 {[%clk 0:00:50]} 19. Rd7 {[%clk 0:01:35]}  Qxd7 {[%clk 0:00:28]} 20. Bxd7 {[%clk 0:01:33]}  Nxd7 {[%clk 0:00:29]} 21. Rd1 {[%clk 0:01:23]}  Rfd8 {[%clk 0:00:24]} 22. Bxf6 {[%clk 0:01:09]}  Nxf6 {[%clk 0:00:23]} 23. Rxd8+ {[%clk 0:01:08]}  Rxd8 {[%clk 0:00:24]} 24. h3 {[%clk 0:01:07]}  Nd5 {[%clk 0:00:20]} 25. Qe5 {[%clk 0:00:55]}  Kf8 {[%clk 0:00:15]} 26. f4 {[%clk 0:00:49]}  g6 {[%clk 0:00:12]} 27. g4 {[%clk 0:00:49]}  Ke7 {[%clk 0:00:10]} 28. f5 {[%clk 0:00:45]}  gxf5 {[%clk 0:00:09]} 29. gxf5 {[%clk 0:00:45]}  Rg8+ {[%clk 0:00:09]} 30. Kf2 {[%clk 0:00:46]}  Rg5 {[%clk 0:00:07]} 31. f6+ {[%clk 0:00:44]}  Nxf6 {[%clk 0:00:08]} 32. Qxg5 {[%clk 0:00:45]}  h6 {[%clk 0:00:08]} 33. Qh4 {[%clk 0:00:44]}  h5 {[%clk 0:00:08]} 34. Qg5 {[%clk 0:00:39]}  e5 {[%clk 0:00:07]} 35. Qxe5+ {[%clk 0:00:38]} 1-0


[Site "https://www.chess.com"]

[Event "Titled Tuesday Blitz November 14 Late 2023"]
[White "Sturt, Raven"]
[Black "Kubicka, Anna"]
[WhiteFideId "2007304"]
[BlackFideId "1152254"]
[WhiteElo "2619"]
[BlackElo "2455"]
[Result "0-1"]
[Round "3"]
[TimeControl "180+1"]
[Date "2023.11.14"]
[WhiteClock "0:01:33"]
[BlackClock "0:00:07"]
[Board "75"]

1. f4 {[%clk 0:02:59]}  d5 {[%clk 0:02:58]} 2. Nf3 {[%clk 0:02:58]}  g6 {[%clk 0:02:58]} 3. e3 {[%clk 0:02:56]}  Bg7 {[%clk 0:02:59]} 4. Nc3 {[%clk 0:02:52]}  c5 {[%clk 0:02:53]} 5. d4 {[%clk 0:02:52]}  c4 {[%clk 0:02:42]} 6. Be2 {[%clk 0:02:48]}  Nc6 {[%clk 0:02:40]} 7. O-O {[%clk 0:02:48]}  Nh6 {[%clk 0:02:41]} 8. Ne5 {[%clk 0:02:48]}  O-O {[%clk 0:02:37]} 9. Bd2 {[%clk 0:02:43]}  f6 {[%clk 0:02:12]} 10. Nxc6 {[%clk 0:02:42]}  bxc6 {[%clk 0:02:13]} 11. e4 {[%clk 0:02:41]}  f5 {[%clk 0:02:06]} 12. e5 {[%clk 0:02:41]}  e6 {[%clk 0:02:06]} 13. b3 {[%clk 0:02:40]}  cxb3 {[%clk 0:02:03]} 14. axb3 {[%clk 0:02:41]}  Rf7 {[%clk 0:01:50]} 15. Na4 {[%clk 0:02:41]}  Bf8 {[%clk 0:01:50]} 16. Qe1 {[%clk 0:02:40]}  Bd7 {[%clk 0:01:35]} 17. Bb4 {[%clk 0:02:36]}  a5 {[%clk 0:01:14]} 18. Bxf8 {[%clk 0:02:35]}  Rxf8 {[%clk 0:01:11]} 19. Nc5 {[%clk 0:02:36]}  Qc7 {[%clk 0:01:02]} 20. Qh4 {[%clk 0:02:35]}  Nf7 {[%clk 0:00:58]} 21. Rf3 {[%clk 0:02:35]}  Bc8 {[%clk 0:00:51]} 22. Rh3 {[%clk 0:02:34]}  Nd8 {[%clk 0:00:44]} 23. Kh1 {[%clk 0:02:34]}  Rf7 {[%clk 0:00:37]} 24. Bd3 {[%clk 0:02:33]}  Qe7 {[%clk 0:00:37]} 25. Qe1 {[%clk 0:02:30]}  Nb7 {[%clk 0:00:35]} 26. Nxb7 {[%clk 0:02:26]}  Qxb7 {[%clk 0:00:35]} 27. Rxa5 {[%clk 0:02:26]}  Rxa5 {[%clk 0:00:33]} 28. Qxa5 {[%clk 0:02:27]}  Qa7 {[%clk 0:00:31]} 29. Qxa7 {[%clk 0:02:15]}  Rxa7 {[%clk 0:00:32]} 30. Rf3 {[%clk 0:02:15]}  Ba6 {[%clk 0:00:31]} 31. c4 {[%clk 0:02:13]}  Rb7 {[%clk 0:00:26]} 32. c5 {[%clk 0:02:06]}  Bxd3 {[%clk 0:00:22]} 33. Rxd3 {[%clk 0:02:05]}  Ra7 {[%clk 0:00:17]} 34. h4 {[%clk 0:02:04]}  Ra1+ {[%clk 0:00:17]} 35. Kh2 {[%clk 0:02:04]}  Rb1 {[%clk 0:00:17]} 36. h5 {[%clk 0:02:01]}  Kg7 {[%clk 0:00:17]} 37. Rh3 {[%clk 0:01:56]}  gxh5 {[%clk 0:00:15]} 38. Rg3+ {[%clk 0:01:54]}  Kh6 {[%clk 0:00:15]} 39. Rf3 {[%clk 0:01:54]}  h4 {[%clk 0:00:14]} 40. Rd3 {[%clk 0:01:54]}  Kh5 {[%clk 0:00:14]} 41. g3 {[%clk 0:01:52]}  Kg4 {[%clk 0:00:11]} 42. gxh4 {[%clk 0:01:51]}  Kxf4 {[%clk 0:00:12]} 43. Kh3 {[%clk 0:01:48]}  h5 {[%clk 0:00:11]} 44. Rd2 {[%clk 0:01:42]}  Rxb3+ {[%clk 0:00:11]} 45. Kg2 {[%clk 0:01:42]}  Rg3+ {[%clk 0:00:10]} 46. Kh2 {[%clk 0:01:38]}  Rg4 {[%clk 0:00:10]} 47. Ra2 {[%clk 0:01:38]}  Rxh4+ {[%clk 0:00:10]} 48. Kg2 {[%clk 0:01:38]}  Rg4+ {[%clk 0:00:08]} 49. Kf2 {[%clk 0:01:37]}  Ke4 {[%clk 0:00:08]} 50. Ra6 {[%clk 0:01:37]}  Kxd4 {[%clk 0:00:07]} 51. Rxc6 {[%clk 0:01:38]}  Kxe5 {[%clk 0:00:08]} 52. Rc8 {[%clk 0:01:37]}  Rc4 {[%clk 0:00:08]} 53. Ke3 {[%clk 0:01:37]}  h4 {[%clk 0:00:08]} 54. Kd3 {[%clk 0:01:33]}  h3 {[%clk 0:00:07]} 0-1


[Site "https://www.chess.com"]

[Event "Titled Tuesday Blitz November 14 Late 2023"]
[White "Roberson, Peter T"]
[Black "PoXerStar"]
[WhiteFideId "412384"]
[WhiteElo "2606"]
[BlackElo "2444"]
[Result "1-0"]
[Round "3"]
[TimeControl "180+1"]
[Date "2023.11.14"]
[WhiteClock "0:00:16"]
[BlackClock "0:00:00"]
[Board "78"]

1. e4 {[%clk 0:03:00]}  c6 {[%clk 0:02:58]} 2. c3 {[%clk 0:02:59]}  d5 {[%clk 0:02:58]} 3. e5 {[%clk 0:02:59]}  Bf5 {[%clk 0:02:51]} 4. Nf3 {[%clk 0:03:00]}  e6 {[%clk 0:02:51]} 5. d4 {[%clk 0:03:00]}  c5 {[%clk 0:02:50]} 6. Be2 {[%clk 0:02:58]}  Nc6 {[%clk 0:02:49]} 7. O-O {[%clk 0:02:59]}  cxd4 {[%clk 0:02:41]} 8. cxd4 {[%clk 0:02:59]}  Bg4 {[%clk 0:02:41]} 9. Nbd2 {[%clk 0:02:55]}  Nge7 {[%clk 0:02:40]} 10. h3 {[%clk 0:02:55]}  Bxf3 {[%clk 0:02:40]} 11. Nxf3 {[%clk 0:02:55]}  Nf5 {[%clk 0:02:18]} 12. g4 {[%clk 0:02:52]}  Nfe7 {[%clk 0:01:59]} 13. b4 {[%clk 0:02:43]}  Ng6 {[%clk 0:01:30]} 14. b5 {[%clk 0:02:43]}  Na5 {[%clk 0:01:30]} 15. Bd2 {[%clk 0:02:35]}  Nc4 {[%clk 0:01:25]} 16. Bxc4 {[%clk 0:02:32]}  dxc4 {[%clk 0:01:26]} 17. Qa4 {[%clk 0:02:20]}  Qd7 {[%clk 0:01:18]} 18. Rac1 {[%clk 0:02:18]}  Be7 {[%clk 0:01:00]} 19. Rxc4 {[%clk 0:02:17]}  O-O {[%clk 0:01:00]} 20. Rfc1 {[%clk 0:02:18]}  Bd8 {[%clk 0:01:01]} 21. Qc2 {[%clk 0:01:59]}  Bb6 {[%clk 0:00:57]} 22. Qe4 {[%clk 0:01:51]}  f5 {[%clk 0:00:34]} 23. exf6 {[%clk 0:01:39]}  Rxf6 {[%clk 0:00:34]} 24. Be3 {[%clk 0:01:31]}  Raf8 {[%clk 0:00:33]} 25. Ne5 {[%clk 0:01:31]}  Nxe5 {[%clk 0:00:25]} 26. dxe5 {[%clk 0:01:29]}  Bxe3 {[%clk 0:00:25]} 27. Qxe3 {[%clk 0:00:48]}  Rf3 {[%clk 0:00:07]} 28. Rc7 {[%clk 0:00:36]}  Qxb5 {[%clk 0:00:07]} 29. Qg5 {[%clk 0:00:36]}  R3f7 {[%clk 0:00:02]} 30. Rxf7 {[%clk 0:00:35]}  Rxf7 {[%clk 0:00:03]} 31. Rc8+ {[%clk 0:00:35]}  Rf8 {[%clk 0:00:03]} 32. Rc7 {[%clk 0:00:35]}  Rf7 {[%clk 0:00:02]} 33. Qd8+ {[%clk 0:00:35]}  Rf8 {[%clk 0:00:01]} 34. Qe7 {[%clk 0:00:35]}  Qxe5 {[%clk 0:00:00]} 35. Kf1 {[%clk 0:00:16]} 1-0


[Site "https://www.chess.com"]

[Event "Titled Tuesday Blitz November 14 Late 2023"]
[White "Yelisieiev, Yevhenii"]
[Black "Nikologorsky, Matfei"]
[WhiteFideId "14139642"]
[BlackFideId "24102474"]
[WhiteElo "2595"]
[BlackElo "2438"]
[Result "1-0"]
[Round "3"]
[TimeControl "180+1"]
[Date "2023.11.14"]
[WhiteClock "0:00:10"]
[BlackClock "0:00:00"]
[Board "79"]

1. d4 {[%clk 0:03:00]}  Nf6 {[%clk 0:02:56]} 2. Nf3 {[%clk 0:03:00]}  e6 {[%clk 0:02:54]} 3. c4 {[%clk 0:03:00]}  a6 {[%clk 0:02:53]} 4. Nc3 {[%clk 0:02:58]}  Bb4 {[%clk 0:02:48]} 5. Qc2 {[%clk 0:02:56]}  O-O {[%clk 0:02:43]} 6. e4 {[%clk 0:02:55]}  d5 {[%clk 0:02:39]} 7. e5 {[%clk 0:02:55]}  Ne4 {[%clk 0:02:37]} 8. Bd3 {[%clk 0:02:55]}  f5 {[%clk 0:02:26]} 9. exf6 {[%clk 0:02:46]}  Nxf6 {[%clk 0:02:16]} 10. O-O {[%clk 0:02:44]}  c5 {[%clk 0:02:07]} 11. dxc5 {[%clk 0:02:18]}  Nc6 {[%clk 0:01:54]} 12. a3 {[%clk 0:02:07]}  Bxc3 {[%clk 0:01:50]} 13. Qxc3 {[%clk 0:02:07]}  d4 {[%clk 0:01:46]} 14. Qc2 {[%clk 0:02:06]}  e5 {[%clk 0:01:46]} 15. Ng5 {[%clk 0:01:58]}  h6 {[%clk 0:01:42]} 16. Ne4 {[%clk 0:01:58]}  Bf5 {[%clk 0:01:04]} 17. Nxf6+ {[%clk 0:01:20]}  Qxf6 {[%clk 0:01:05]} 18. Bxf5 {[%clk 0:01:20]}  Qxf5 {[%clk 0:01:05]} 19. Qxf5 {[%clk 0:01:18]}  Rxf5 {[%clk 0:01:06]} 20. b4 {[%clk 0:01:15]}  Rd8 {[%clk 0:01:00]} 21. f3 {[%clk 0:01:08]}  d3 {[%clk 0:00:45]} 22. Be3 {[%clk 0:00:58]}  Nd4 {[%clk 0:00:45]} 23. Bxd4 {[%clk 0:00:31]}  Rxd4 {[%clk 0:00:46]} 24. Rfd1 {[%clk 0:00:30]}  Rff4 {[%clk 0:00:32]} 25. Rac1 {[%clk 0:00:23]}  e4 {[%clk 0:00:21]} 26. fxe4 {[%clk 0:00:23]}  Rfxe4 {[%clk 0:00:22]} 27. Rd2 {[%clk 0:00:23]}  Re2 {[%clk 0:00:17]} 28. Rxe2 {[%clk 0:00:17]}  dxe2 {[%clk 0:00:18]} 29. Re1 {[%clk 0:00:15]}  Rxc4 {[%clk 0:00:10]} 30. Rxe2 {[%clk 0:00:16]}  Rc3 {[%clk 0:00:10]} 31. Re7 {[%clk 0:00:14]}  Rxa3 {[%clk 0:00:06]} 32. Rxb7 {[%clk 0:00:15]}  Rb3 {[%clk 0:00:04]} 33. Kf2 {[%clk 0:00:12]}  a5 {[%clk 0:00:03]} 34. c6 {[%clk 0:00:10]}  axb4 {[%clk 0:00:00]} 35. c7 {[%clk 0:00:10]} 1-0


[Site "https://www.chess.com"]

[Event "Titled Tuesday Blitz November 14 Late 2023"]
[White "Villarreal, Agustin"]
[Black "Atanasov, Anthony"]
[WhiteFideId "125687"]
[BlackFideId "2623897"]
[WhiteElo "2434"]
[BlackElo "2592"]
[Result "0-1"]
[Round "3"]
[TimeControl "180+1"]
[Date "2023.11.14"]
[WhiteClock "0:01:37"]
[BlackClock "0:01:51"]
[Board "81"]

1. d4 {[%clk 0:03:00]}  Nf6 {[%clk 0:02:55]} 2. Nf3 {[%clk 0:03:01]}  g6 {[%clk 0:02:56]} 3. c4 {[%clk 0:03:00]}  Bg7 {[%clk 0:02:56]} 4. Nc3 {[%clk 0:03:01]}  d5 {[%clk 0:02:55]} 5. Bg5 {[%clk 0:03:02]}  Ne4 {[%clk 0:02:52]} 6. cxd5 {[%clk 0:03:02]}  Nxg5 {[%clk 0:02:50]} 7. Nxg5 {[%clk 0:03:03]}  e6 {[%clk 0:02:50]} 8. Qd2 {[%clk 0:03:01]}  exd5 {[%clk 0:02:49]} 9. Qe3+ {[%clk 0:03:01]}  Kf8 {[%clk 0:02:50]} 10. Qf4 {[%clk 0:03:01]}  Bf6 {[%clk 0:02:48]} 11. h4 {[%clk 0:03:02]}  h6 {[%clk 0:02:48]} 12. Nf3 {[%clk 0:03:01]}  Kg7 {[%clk 0:02:39]} 13. O-O-O {[%clk 0:03:01]}  Nc6 {[%clk 0:02:28]} 14. e3 {[%clk 0:03:00]}  Be6 {[%clk 0:02:25]} 15. Bd3 {[%clk 0:03:00]}  Qd6 {[%clk 0:02:18]} 16. Qxd6 {[%clk 0:02:59]}  cxd6 {[%clk 0:02:18]} 17. Kb1 {[%clk 0:02:58]}  Nb4 {[%clk 0:02:17]} 18. Bc2 {[%clk 0:02:53]}  Nxc2 {[%clk 0:02:17]} 19. Kxc2 {[%clk 0:02:53]}  Rac8 {[%clk 0:02:17]} 20. Kb1 {[%clk 0:02:53]}  Rc6 {[%clk 0:02:16]} 21. Nd2 {[%clk 0:02:39]}  Rhc8 {[%clk 0:02:16]} 22. Rdg1 {[%clk 0:02:32]}  h5 {[%clk 0:02:15]} 23. f3 {[%clk 0:02:27]}  Rb6 {[%clk 0:02:11]} 24. g4 {[%clk 0:02:26]}  Rxc3 {[%clk 0:02:08]} 25. g5 {[%clk 0:02:24]}  Be7 {[%clk 0:02:06]} 26. Nb3 {[%clk 0:02:20]}  Bf5+ {[%clk 0:02:03]} 27. e4 {[%clk 0:02:19]}  Rcxb3 {[%clk 0:02:00]} 28. axb3 {[%clk 0:02:10]}  dxe4 {[%clk 0:02:00]} 29. Kc1 {[%clk 0:01:56]}  exf3 {[%clk 0:01:58]} 30. Rh2 {[%clk 0:01:54]}  Rxb3 {[%clk 0:01:58]} 31. Re1 {[%clk 0:01:52]}  Bd8 {[%clk 0:01:55]} 32. Rf2 {[%clk 0:01:52]}  Bb6 {[%clk 0:01:55]} 33. Rd1 {[%clk 0:01:52]}  d5 {[%clk 0:01:54]} 34. Rdd2 {[%clk 0:01:48]}  Be4 {[%clk 0:01:53]} 35. Rf1 {[%clk 0:01:47]}  Bc7 {[%clk 0:01:52]} 36. Rdf2 {[%clk 0:01:40]}  Bf4+ {[%clk 0:01:52]} 37. Kd1 {[%clk 0:01:40]}  Rd3+ {[%clk 0:01:51]} 38. Ke1 {[%clk 0:01:40]}  Bg3 {[%clk 0:01:50]} 39. Rg1 {[%clk 0:01:37]}  Bxh4 {[%clk 0:01:51]} 0-1


[Site "https://www.chess.com"]

[Event "Titled Tuesday Blitz November 14 Late 2023"]
[White "Prithu Gupta"]
[Black "szachmistrz2500"]
[WhiteFideId "46618546"]
[WhiteElo "2582"]
[BlackElo "2429"]
[Result "0-1"]
[Round "3"]
[TimeControl "180+1"]
[Date "2023.11.14"]
[WhiteClock "0:00:03"]
[BlackClock "0:00:29"]
[Board "85"]

1. d4 {[%clk 0:02:58]}  d5 {[%clk 0:02:59]} 2. c4 {[%clk 0:02:57]}  c6 {[%clk 0:02:59]} 3. Nf3 {[%clk 0:02:57]}  Nf6 {[%clk 0:02:59]} 4. e3 {[%clk 0:02:57]}  Bg4 {[%clk 0:02:58]} 5. Nc3 {[%clk 0:02:56]}  e6 {[%clk 0:02:58]} 6. Be2 {[%clk 0:02:56]}  Nbd7 {[%clk 0:02:57]} 7. O-O {[%clk 0:02:55]}  Bd6 {[%clk 0:02:56]} 8. b3 {[%clk 0:02:27]}  O-O {[%clk 0:02:55]} 9. Bb2 {[%clk 0:02:27]}  Qe7 {[%clk 0:02:54]} 10. Rc1 {[%clk 0:02:22]}  Ne4 {[%clk 0:02:32]} 11. Nxe4 {[%clk 0:02:20]}  dxe4 {[%clk 0:02:33]} 12. Nd2 {[%clk 0:02:20]}  Bxe2 {[%clk 0:02:30]} 13. Qxe2 {[%clk 0:02:21]}  f5 {[%clk 0:02:30]} 14. f3 {[%clk 0:02:18]}  exf3 {[%clk 0:02:21]} 15. gxf3 {[%clk 0:02:04]}  e5 {[%clk 0:02:20]} 16. Rce1 {[%clk 0:01:49]}  Rae8 {[%clk 0:02:04]} 17. Qf2 {[%clk 0:01:44]}  Ba3 {[%clk 0:01:51]} 18. Bc3 {[%clk 0:01:40]}  Bb4 {[%clk 0:01:51]} 19. Bxb4 {[%clk 0:01:38]}  Qxb4 {[%clk 0:01:51]} 20. f4 {[%clk 0:01:37]}  exd4 {[%clk 0:01:42]} 21. exd4 {[%clk 0:01:36]}  Nf6 {[%clk 0:01:43]} 22. h3 {[%clk 0:01:31]}  Qc3 {[%clk 0:01:39]} 23. Kh2 {[%clk 0:01:27]}  Ne4 {[%clk 0:01:35]} 24. Nxe4 {[%clk 0:01:23]}  fxe4 {[%clk 0:01:35]} 25. Qe3 {[%clk 0:01:19]}  Qa5 {[%clk 0:01:33]} 26. Re2 {[%clk 0:01:16]}  Qf5 {[%clk 0:01:28]} 27. Rg2 {[%clk 0:01:11]}  Rf6 {[%clk 0:01:25]} 28. Rg4 {[%clk 0:00:43]}  Re7 {[%clk 0:00:55]} 29. Rfg1 {[%clk 0:00:28]}  h5 {[%clk 0:00:52]} 30. Rh4 {[%clk 0:00:25]}  Rg6 {[%clk 0:00:37]} 31. Rxg6 {[%clk 0:00:13]}  Qxg6 {[%clk 0:00:37]} 32. d5 {[%clk 0:00:13]}  cxd5 {[%clk 0:00:32]} 33. cxd5 {[%clk 0:00:14]}  Rc7 {[%clk 0:00:31]} 34. Qe2 {[%clk 0:00:10]}  Rc1 {[%clk 0:00:29]} 35. Qf2 {[%clk 0:00:04]}  e3 {[%clk 0:00:28]} 36. Qxe3 {[%clk 0:00:03]}  Rc2+ {[%clk 0:00:29]} 0-1


[Site "https://www.chess.com"]

[Event "Titled Tuesday Blitz November 14 Late 2023"]
[White "Miszler, Levente"]
[Black "Lima, Kleyton Alcantara"]
[WhiteFideId "763276"]
[BlackFideId "22718397"]
[WhiteElo "2424"]
[BlackElo "2579"]
[Result "0-1"]
[Round "3"]
[TimeControl "180+1"]
[Date "2023.11.14"]
[WhiteClock "0:01:34"]
[BlackClock "0:01:07"]
[Board "88"]

1. Nf3 {[%clk 0:02:54]}  c5 {[%clk 0:02:59]} 2. c4 {[%clk 0:02:54]}  Nc6 {[%clk 0:02:59]} 3. g3 {[%clk 0:02:55]}  g6 {[%clk 0:02:57]} 4. Bg2 {[%clk 0:02:55]}  Bg7 {[%clk 0:02:57]} 5. Nc3 {[%clk 0:02:56]}  e5 {[%clk 0:02:56]} 6. O-O {[%clk 0:02:56]}  Nge7 {[%clk 0:02:56]} 7. Ne1 {[%clk 0:02:57]}  O-O {[%clk 0:02:54]} 8. Nc2 {[%clk 0:02:58]}  d6 {[%clk 0:02:54]} 9. Ne3 {[%clk 0:02:58]}  f5 {[%clk 0:02:54]} 10. Ned5 {[%clk 0:02:59]}  Be6 {[%clk 0:02:54]} 11. d3 {[%clk 0:02:59]}  Qd7 {[%clk 0:02:53]} 12. a3 {[%clk 0:02:59]}  a5 {[%clk 0:02:49]} 13. Rb1 {[%clk 0:02:59]}  f4 {[%clk 0:02:46]} 14. b4 {[%clk 0:02:58]}  axb4 {[%clk 0:02:36]} 15. axb4 {[%clk 0:02:59]}  Nd4 {[%clk 0:02:36]} 16. Nb6 {[%clk 0:02:56]}  Qd8 {[%clk 0:02:18]} 17. Nxa8 {[%clk 0:02:56]}  Qxa8 {[%clk 0:02:19]} 18. bxc5 {[%clk 0:02:56]}  dxc5 {[%clk 0:01:53]} 19. Bxb7 {[%clk 0:02:55]}  Qa5 {[%clk 0:01:45]} 20. Bd2 {[%clk 0:02:54]}  Bh3 {[%clk 0:01:40]} 21. Bg2 {[%clk 0:02:53]}  Bxg2 {[%clk 0:01:38]} 22. Kxg2 {[%clk 0:02:54]}  Qd8 {[%clk 0:01:39]} 23. f3 {[%clk 0:02:50]}  Nef5 {[%clk 0:01:39]} 24. Ne4 {[%clk 0:02:49]}  h5 {[%clk 0:01:32]} 25. Rb7 {[%clk 0:02:40]}  g5 {[%clk 0:01:30]} 26. Nxc5 {[%clk 0:02:33]}  Qc8 {[%clk 0:01:25]} 27. Rxg7+ {[%clk 0:02:16]}  Kxg7 {[%clk 0:01:26]} 28. Ne4 {[%clk 0:02:17]}  Kh8 {[%clk 0:01:23]} 29. Nxg5 {[%clk 0:02:13]}  Rg8 {[%clk 0:01:20]} 30. Nf7+ {[%clk 0:02:12]}  Kh7 {[%clk 0:01:18]} 31. Nxe5 {[%clk 0:02:11]}  fxg3 {[%clk 0:01:15]} 32. hxg3 {[%clk 0:02:02]}  Rxg3+ {[%clk 0:01:16]} 33. Kh2 {[%clk 0:01:34]}  Qd8 {[%clk 0:01:07]} 0-1


[Site "https://www.chess.com"]